{"text_format":"3","workbook":"xlsx","n_sheets":5,"sheets":["詳細情報","マイルストーン","タスク","ガント チャート","非表示の動的なグラフ データ"],"not_rendered":{"charts":1,"defined_names":4},"read":"whole","date_system":"1900"}

{"sheet":"詳細情報","index":0,"n_rows":11,"n_cols":1,"rows_kept":11}
["このブックについて"]
["マイルストーンとタスクのワークシートに、マイルストーンとタスクの情報を入力します。タイムラインに沿ってマイルストーンのグラフを作成するには、[番号] 列に 0 を入力し、ラベルの位置を [下] に更新してラベルが重ならないようにします。\n\nマイルストーン テーブルの位置列では、同じ行または積み重ねられた行のいずれかのタスク グラフ内でマイルストーンのグラフを作成します。同じ行でそれらのグラフを作成するには、各マイルストーンのこの列に同じ数値を入力します。これらを異なる行でグラフを作成するには、異なる数値を入力します。サンプル データは、行位置 2 に沿ってすべてのマイルストーンのグラフを作成します。\n"]
["スクリーン リーダーのガイド"]
["\nこのブックには 5 つのワークシートがあります。\n詳細情報\nマイルストーン\nタスク\nガント チャート\n動的なグラフ データ (非表示)\n\n各ワークシートの説明は、各ワークシートの A 列のセル A1 から始まります。非表示のテキストで書き込まれます。各手順では、その行に含まれる情報について説明しています。明示的な指示がない限り、後続の各手順はセル A2、セル A3 といった順に格納されています。たとえば、説明テキストに、次の手順について \"セル A6 に続く\" と記載されている場合があります。\n\n非表示のテキストは印刷されません。\n任意のワークシートからこれらの説明を削除する場合は、列 A を削除するだけです。\n"]
["動的なグラフ データ (非表示)"]
["\n非表示ワークシート内のコンテンツを削除または変更しないでください。そうすると、ガント チャートの整合性が損なわれる可能性があります。\n\nデータは空白で表示されることがあり、日付は正しく表示されないことがあります。データを入力、編集、削除、または別の方法で変更しないでください。そうしないと、数式が上書きされたり、グラフ作成機能が損なわれる可能性があります。\n\n動的マイルストーン テーブルでは、15 個のマイルストーンのグラフを作成することができます。15 個を超えるマイルストーンのグラフを作成するには、必要な数に合わせてテーブルを拡張するだけです。グラフ データ ワークシートに実際のマイルストーン データを追加するだけであることを忘れないでください。\n"]
["ヒント"]
["\n既定では、マイルストーンは、セル C5 から始まるグラフ データ ワークシートの位置列を使用して、ガント チャートの行 1 にグラフを作成します。別の行でマイルストーンのグラフを作成するには、数値を変更するだけです。 \n"]
["既定の設定では、ガント チャートで今日の日付を強調表示します。今日の日付を強調表示しないようにするには、グラフ データ ワークシートのセル D2 の [いいえ] を選択するだけです。\n"]
["ガント チャートの日付タイムラインは、5 つの日付間のギャップを使用してグラフ作成されます。これを変更するには、ガント チャート ワークシートのタイムラインを選択し、[軸の書式設定] を選択します。たとえば、ラベル単位を 5 から 1 または 10 に変更します。 \n"]
["これは、このワークシートにおける最後の説明です。"]

{"sheet":"マイルストーン","index":1,"n_rows":26,"n_cols":5,"rows_kept":26}
["このワークシートで日付管理ガント チャートを作成します。\nこのワークシートのタイトルは、セル B1 に入ります。\nこのワークシートを使用する方法 (スクリーン リーダーの説明など) は、\"詳細情報\" ワークシートにあります。\n詳細な説明については、列 A を下方に移動します。","日付管理ガント チャート"]
["ガント チャート ワークシートで今日の日付を強調表示する場合は、セル D2 のオプション [はい] を選択します。\nガント チャート ワークシートで今日の日付を強調表示しない場合は、セル D2 のオプション [いいえ] を選択します。\nセル D2 で、Alt キーを押しながら下方向キーを選択してオプションを表示します。","今日の日付を管理しますか?",null,"はい"]
["マイルストーン テーブルのマイルストーンの見出しは、セル B3 にあります。\nタスク テーブルのタスクの見出しは、セル G3 にあります。","マイルストーン"]
["マイルストーン テーブルの列に関する情報は、セル B4 から E4 の行にあります。\nタスク テーブルの列に関する情報は、セル G4 から J4 の行にあります。","この列は、順番に番号を付ける必要があります。","位置列。タスク グラフ内のグラフのマイルストーン。","この列には、マイルストーンの日付を入力します。","この列には、マイルストーンの説明を入力します。これらの説明は、グラフに表示されます。"]
["マイルストーン テーブルの見出しは、セル B5 から E5 にあります。タスク テーブルの見出しは、セル G5 から J5 にあります。\nマイルストーンのサンプル データは、セル B6 から E11 にあります。\nタスクのサンプル データは、セル G6 から J17 にあります。\n次の指示は、セル A21 にあります。","番号","位置","日付","マイルストーン"]
[null,1,1,{"$f":"Start_Date+10","v":"2024-04-20"},"マイルストーン 1"]
[null,2,1,{"$f":"TODAY()+25","v":"2024-05-06"},"マイルストーン 2"]
[null,3,1,{"$f":"TODAY()+35","v":"2024-05-16"},"マイルストーン 3"]
[null,4,1,{"$f":"TODAY()+45","v":"2024-05-26"},"マイルストーン 4"]
[null,5,1,{"$f":"TODAY()+60","v":"2024-06-10"},"マイルストーン 5"]
[null,6,1,{"$f":"TODAY()+70","v":"2024-06-20"},"マイルストーン 6"]
{"$rows_empty":9}
["さらにマイルストーンを追加するには、この行の上に新しい行を追加します。\nグラフを作成するマイルストーンの既定の数は、15 であることに注意してください。新しいマイルストーンを追加するには、非表示のワークシートを変更する必要があります。詳細については、詳細情報ワークシートのセル A9 を参照してください。\n次の指示は、セル A26 にあります。","さらにマイルストーンを追加するには、この行の上に新しい行を追加します。"]
[]
[]
[]
[]
["メモは、セル G26 にあります。\nこれは、このワークシートにおける最後の説明です。"]

{"sheet":"タスク","index":2,"n_rows":26,"n_cols":6,"rows_kept":26}
["このワークシートで日付管理ガント チャートを作成します。\nこのワークシートのタイトルは、セル B1 に入ります。\nこのワークシートを使用する方法 (スクリーン リーダーの説明など) は、\"詳細情報\" ワークシートにあります。\n列 A を下方に移動しながら、詳細な説明を確認できます。","日付管理ガント チャート"]
[]
["マイルストーン テーブルのマイルストーンの見出しは、セル B3 にあります。\nタスク テーブルのタスクの見出しは、セル G3 に設定されます。","タスク"]
[null,"この列は、順番に番号を付ける必要があります。","次の各タスクの開始日を入力します。最適な結果を得るには、この列を昇順に並べ替えます。","この列には、各タスクまたは次のアクティビティの終了日を入力します。","この列には、タスクやアクティビティを入力します。","各タスクの期間のグラフ作成に使用される自動集計列。削除または変更しないでください。"]
[null,"番号","開始日","終了日","タスク","期間 (日)"]
[null,1,{"$f":"TODAY()-1","v":"2024-04-10"},{"$f":"タスク[[#This Row],[開始日]]+1","v":"2024-04-11"},"アクティビティ 1",{"$f":"IFERROR(IF(LEN(タスク[[#This Row],[開始日]])=0,\"\",(INT(タスク[[#This Row],[終了日]])-INT(タスク[[#This Row],[開始日]]))-(INT(タスク[[#This Row],[開始日]])-INT(タスク[[#This Row],[開始日]]))+1),\"\")","v":2}]
[null,2,{"$f":"TODAY()","v":"2024-04-11"},{"$f":"タスク[[#This Row],[開始日]]+1","v":"2024-04-12"},"アクティビティ 2",{"$f":"IFERROR(IF(LEN(タスク[[#This Row],[開始日]])=0,\"\",(INT(タスク[[#This Row],[終了日]])-INT(タスク[[#This Row],[開始日]]))-(INT(タスク[[#This Row],[開始日]])-INT(タスク[[#This Row],[開始日]]))+1),\"\")","v":2}]
[null,3,{"$f":"TODAY()","v":"2024-04-11"},{"$f":"タスク[[#This Row],[開始日]]+5","v":"2024-04-16"},"アクティビティ 3",{"$f":"IFERROR(IF(LEN(タスク[[#This Row],[開始日]])=0,\"\",(INT(タスク[[#This Row],[終了日]])-INT(タスク[[#This Row],[開始日]]))-(INT(タスク[[#This Row],[開始日]])-INT(タスク[[#This Row],[開始日]]))+1),\"\")","v":6}]
[null,4,{"$f":"TODAY()+1","v":"2024-04-12"},{"$f":"タスク[[#This Row],[開始日]]+7","v":"2024-04-19"},"アクティビティ 4",{"$f":"IFERROR(IF(LEN(タスク[[#This Row],[開始日]])=0,\"\",(INT(タスク[[#This Row],[終了日]])-INT(タスク[[#This Row],[開始日]]))-(INT(タスク[[#This Row],[開始日]])-INT(タスク[[#This Row],[開始日]]))+1),\"\")","v":8}]
[null,5,{"$f":"TODAY()+8","v":"2024-04-19"},{"$f":"タスク[[#This Row],[開始日]]+10","v":"2024-04-29"},"アクティビティ 5",{"$f":"IFERROR(IF(LEN(タスク[[#This Row],[開始日]])=0,\"\",(INT(タスク[[#This Row],[終了日]])-INT(タスク[[#This Row],[開始日]]))-(INT(タスク[[#This Row],[開始日]])-INT(タスク[[#This Row],[開始日]]))+1),\"\")","v":11}]
[null,6,{"$f":"TODAY()+12","v":"2024-04-23"},{"$f":"タスク[[#This Row],[開始日]]+30","v":"2024-05-23"},"アクティビティ 6",{"$f":"IFERROR(IF(LEN(タスク[[#This Row],[開始日]])=0,\"\",(INT(タスク[[#This Row],[終了日]])-INT(タスク[[#This Row],[開始日]]))-(INT(タスク[[#This Row],[開始日]])-INT(タスク[[#This Row],[開始日]]))+1),\"\")","v":31}]
[null,7,{"$f":"TODAY()+15","v":"2024-04-26"},{"$f":"タスク[[#This Row],[開始日]]+15","v":"2024-05-11"},"アクティビティ 7",{"$f":"IFERROR(IF(LEN(タスク[[#This Row],[開始日]])=0,\"\",(INT(タスク[[#This Row],[終了日]])-INT(タスク[[#This Row],[開始日]]))-(INT(タスク[[#This Row],[開始日]])-INT(タスク[[#This Row],[開始日]]))+1),\"\")","v":16}]
[null,8,{"$f":"TODAY()+25","v":"2024-05-06"},{"$f":"タスク[[#This Row],[開始日]]+5","v":"2024-05-11"},"アクティビティ 8",{"$f":"IFERROR(IF(LEN(タスク[[#This Row],[開始日]])=0,\"\",(INT(タスク[[#This Row],[終了日]])-INT(タスク[[#This Row],[開始日]]))-(INT(タスク[[#This Row],[開始日]])-INT(タスク[[#This Row],[開始日]]))+1),\"\")","v":6}]
[null,9,{"$f":"TODAY()+34","v":"2024-05-15"},{"$f":"タスク[[#This Row],[開始日]]+2","v":"2024-05-17"},"アクティビティ 9",{"$f":"IFERROR(IF(LEN(タスク[[#This Row],[開始日]])=0,\"\",(INT(タスク[[#This Row],[終了日]])-INT(タスク[[#This Row],[開始日]]))-(INT(タスク[[#This Row],[開始日]])-INT(タスク[[#This Row],[開始日]]))+1),\"\")","v":3}]
[null,10,{"$f":"TODAY()+40","v":"2024-05-21"},{"$f":"タスク[[#This Row],[開始日]]+30","v":"2024-06-20"},"アクティビティ 10",{"$f":"IFERROR(IF(LEN(タスク[[#This Row],[開始日]])=0,\"\",(INT(タスク[[#This Row],[終了日]])-INT(タスク[[#This Row],[開始日]]))-(INT(タスク[[#This Row],[開始日]])-INT(タスク[[#This Row],[開始日]]))+1),\"\")","v":31}]
[null,11,{"$f":"TODAY()+42","v":"2024-05-23"},{"$f":"タスク[[#This Row],[開始日]]+23","v":"2024-06-15"},"アクティビティ 11",{"$f":"IFERROR(IF(LEN(タスク[[#This Row],[開始日]])=0,\"\",(INT(タスク[[#This Row],[終了日]])-INT(タスク[[#This Row],[開始日]]))-(INT(タスク[[#This Row],[開始日]])-INT(タスク[[#This Row],[開始日]]))+1),\"\")","v":24}]
[null,12,{"$f":"TODAY()+50","v":"2024-05-31"},{"$f":"タスク[[#This Row],[開始日]]+5","v":"2024-06-05"},"アクティビティ 12",{"$f":"IFERROR(IF(LEN(タスク[[#This Row],[開始日]])=0,\"\",(INT(タスク[[#This Row],[終了日]])-INT(タスク[[#This Row],[開始日]]))-(INT(タスク[[#This Row],[開始日]])-INT(タスク[[#This Row],[開始日]]))+1),\"\")","v":6}]
[{"$nulls":5},{"$f":"IFERROR(IF(LEN(タスク[[#This Row],[開始日]])=0,\"\",(INT(タスク[[#This Row],[終了日]])-INT(タスク[[#This Row],[開始日]]))-(INT(タスク[[#This Row],[開始日]])-INT(タスク[[#This Row],[開始日]]))+1),\"\")","v":""}]
[{"$nulls":5},{"$f":"IFERROR(IF(LEN(タスク[[#This Row],[開始日]])=0,\"\",(INT(タスク[[#This Row],[終了日]])-INT(タスク[[#This Row],[開始日]]))-(INT(タスク[[#This Row],[開始日]])-INT(タスク[[#This Row],[開始日]]))+1),\"\")","v":""}]
[{"$nulls":5},{"$f":"IFERROR(IF(LEN(タスク[[#This Row],[開始日]])=0,\"\",(INT(タスク[[#This Row],[終了日]])-INT(タスク[[#This Row],[開始日]]))-(INT(タスク[[#This Row],[開始日]])-INT(タスク[[#This Row],[開始日]]))+1),\"\")","v":""}]
[{"$nulls":5},{"$f":"IFERROR(IF(LEN(タスク[[#This Row],[開始日]])=0,\"\",(INT(タスク[[#This Row],[終了日]])-INT(タスク[[#This Row],[開始日]]))-(INT(タスク[[#This Row],[開始日]])-INT(タスク[[#This Row],[開始日]]))+1),\"\")","v":""}]
[{"$nulls":5},{"$f":"IFERROR(IF(LEN(タスク[[#This Row],[開始日]])=0,\"\",(INT(タスク[[#This Row],[終了日]])-INT(タスク[[#This Row],[開始日]]))-(INT(タスク[[#This Row],[開始日]])-INT(タスク[[#This Row],[開始日]]))+1),\"\")","v":""}]
[{"$nulls":5},{"$f":"IFERROR(IF(LEN(タスク[[#This Row],[開始日]])=0,\"\",(INT(タスク[[#This Row],[終了日]])-INT(タスク[[#This Row],[開始日]]))-(INT(タスク[[#This Row],[開始日]])-INT(タスク[[#This Row],[開始日]]))+1),\"\")","v":""}]
[{"$nulls":5},{"$f":"IFERROR(IF(LEN(タスク[[#This Row],[開始日]])=0,\"\",(INT(タスク[[#This Row],[終了日]])-INT(タスク[[#This Row],[開始日]]))-(INT(タスク[[#This Row],[開始日]])-INT(タスク[[#This Row],[開始日]]))+1),\"\")","v":""}]
[{"$nulls":5},{"$f":"IFERROR(IF(LEN(タスク[[#This Row],[開始日]])=0,\"\",(INT(タスク[[#This Row],[終了日]])-INT(タスク[[#This Row],[開始日]]))-(INT(タスク[[#This Row],[開始日]])-INT(タスク[[#This Row],[開始日]]))+1),\"\")","v":""}]
[null,"さらにタスクを追加するには、この行の上に新しい行を追加します。"]

{"sheet":"ガント チャート","index":3,"n_rows":1,"n_cols":1,"rows_kept":1}
["このワークシートには、今日、マイルストーン、および日付範囲内のタスクが表示されているガント チャートがあります。\nセル B1 から R1 の行 1 には、スクロール バーがあり、日付範囲を増分して今後のマイルストーンを表示します。\nグラフは、セル B2 から R3 の範囲内に描画されます。\nこれは、このワークシートにおける最後の説明です。"]

{"sheet":"非表示の動的なグラフ データ","index":4,"n_rows":32,"n_cols":10,"rows_kept":32,"hidden":true}
["このワークシートのタイトルは、セル B1 にあります。","グラフの動的データ。このワークシートを編集または削除しないでください。"]
["テーブルのタイトルは、セル B2 と C2 にあります。",{"$f":"IF(TODAY()>=MIN(動的タスク_データ[開始日]),\"今日\",\"\")","v":"今日"},"強調表示"]
["テーブルの見出しは、セル B3 と C3 にあります。これらの座標は、グラフで今日を強調表示します。\n最初の列は、日を示します。2 列目は、今日を強調表示する線を描画することを示します。\n最初の列の日付は変更できるので、日付が進んでも、グラフの日付範囲の読みやすさが維持されます。ただし、y 座標 0 は線が描画されないことを示します。\nこのコンテンツを変更または削除しないでください。そうしないと、グラフが破損する可能性があります。今日の日付を強調表示しないようにするには、グラフ データ ワークシートのセル D2 の [いいえ] を選択するだけです。\n次の指示は、セル A7 にあります。","今日は x 座標を強調表示します","y 座標"]
[null,{"$f":"IFERROR(IF(TODAY()<MIN(動的タスク #REF!),MIN($B$11,MIN(動的タスク #REF!)),TODAY()),TODAY())","v":"2024-04-11"},{"$f":"IFERROR(IF(Track_Today=\"はい\",IF(TODAY()<MIN(動的タスク_データ[開始日]),0,9),0),0)","v":9}]
[null,{"$f":"IFERROR(IF(TODAY()<MIN(動的タスク #REF!),MIN($B$11,MIN(動的タスク #REF!)),TODAY()),TODAY())","v":"2024-04-11"},{"$f":"IFERROR(IF(Track_Today=\"はい\",IF(TODAY()<MIN(動的タスク_データ[開始日]),0,9),0),0)","v":9}]
[]
["テーブルの見出しは、セル B7 にあります。\nセル B8 のスクロールの増分は、常に、ガント チャートに視覚的に表示されているグラフが作成されたデータを表します。\nガント チャート ワークシートの行 1 にあるグラフの上部のスクロール バーをスクロールすると、この数値が増分されます。\nグラフ作成は、1 つの増分で最も適切に動作します。\n次の指示は、セル A10 にあります。","スクロールの増分"]
[null,0]
[]
["テーブルの見出しは、セル B10 と D10 にあります。\nグラフ作成の範囲は、適切な範囲のタスクとマイルストーンの選択に役立ちます。これらのフィールドは変更しないでください。\nAgeoff 番号では、範囲から古くなったタスクを除外し、範囲内のタスクのみをプロットして、グラフの読みやすさを維持します。この番号は変更しないでください。\n次の指示はセル A14 にあります。\n\n","グラフ作成の範囲",null,"Ageoff"]
[null,{"$f":"IFERROR(IF(スクロール増分[スクロールの増分]<>0,Start_Date,IF(Start_Date+スクロール増分[スクロールの増分]*15<End_Date,Start_Date+スクロール増分[スクロールの増分]*15,End_Date-1)),\"\")","v":"2024-04-10"},null,45]
[null,{"$f":"IFERROR(IF($B$11+15<End_Date,$B$11+15,End_Date),\"\")","v":"2024-04-25"}]
[]
["マイルストーンの動的データ テーブルの見出しは、セル B14 から E14 にあります。メモは、セル F14 にあります。\nガント チャート ワークシートのこのテーブルは、ガント チャートを作成し、一度に 7 個のマイルストーンをプロットします、\nこのグラフのデータは、上のテーブルの内容に基づいて自動生成されます。\nこのテーブルまたはその内容を編集または削除しないでください。\n次の指示はセル A17 にあります。","タスク","開始日","タスク期間 (日)","位置","<-- このテーブルは、ガント チャートを作成し、一度に 7 個のマイルストーンをプロットします"]
[null,{"$f":"IFERROR(IF(LEN(OFFSET(タスク!$C6,スクロール増分[スクロールの増分],0,1,1))=0,\"\",IF(OR(OFFSET(タスク!$D6,スクロール増分[スクロールの増分],0,1,1)<=$B$12,OFFSET(タスク!$C6,スクロール増分[スクロールの増分],0,1,1)>=($B$11-$D$11)),INDEX(タスク[],OFFSET(タスク!$B6,スクロール増分[スクロールの増分],0,1,1),4),\"\")),\"\")","v":"アクティビティ 1"},{"$f":"IFERROR(IF(LEN(動的タスク_データ[[#This Row],[タスク]])=0,$B$11,INDEX(タスク[],OFFSET(タスク!$B6,スクロール増分[スクロールの増分],0,1,1),2)),\"\")","v":"2024-04-10"},{"$f":"IFERROR(IF(LEN(動的タスク_データ[[#This Row],[タスク]])=0,0,IF(AND(タスク!$C6<=$B$12,タスク!$D6>=$B$12),ABS(OFFSET(タスク!$C6,スクロール増分[スクロールの増分],0,1,1)-$B$12)+1,OFFSET(タスク!$F6,スクロール増分[スクロールの増分],0,1,1))),\"\")","v":2},{"$f":"IFERROR(IF(LEN(動的タスク_データ[[#This Row],[タスク]])=0,\"\",8),\"\")","v":8}]
[null,{"$f":"IFERROR(IF(LEN(OFFSET(タスク!$C7,スクロール増分[スクロールの増分],0,1,1))=0,\"\",IF(OR(OFFSET(タスク!$D7,スクロール増分[スクロールの増分],0,1,1)<=$B$12,OFFSET(タスク!$C7,スクロール増分[スクロールの増分],0,1,1)>=($B$11-$D$11)),INDEX(タスク[],OFFSET(タスク!$B7,スクロール増分[スクロールの増分],0,1,1),4),\"\")),\"\")","v":"アクティビティ 2"},{"$f":"IFERROR(IF(LEN(動的タスク_データ[[#This Row],[タスク]])=0,$B$11,INDEX(タスク[],OFFSET(タスク!$B7,スクロール増分[スクロールの増分],0,1,1),2)),\"\")","v":"2024-04-11"},{"$f":"IFERROR(IF(LEN(動的タスク_データ[[#This Row],[タスク]])=0,0,IF(AND(タスク!$C7<=$B$12,タスク!$D7>=$B$12),ABS(OFFSET(タスク!$C7,スクロール増分[スクロールの増分],0,1,1)-$B$12)+1,OFFSET(タスク!$F7,スクロール増分[スクロールの増分],0,1,1))),\"\")","v":2},{"$f":"IFERROR(IF(LEN(動的タスク_データ[[#This Row],[タスク]])=0,\"\",7),\"\")","v":7},null,"マイルストーンのグラフ作成"]
["セル G15 から I15 には、マイルストーンの動的データ テーブルの見出しが含まれます。\nこのテーブルのデータは空白で表示されることがあり、日付は正しく表示されないことがあります。このデータを入力、編集、削除、または別の方法で変更しないでください。そうしないと、数式が上書きされたり、グラフ作成機能が損なわれる可能性があります。\nこのテーブルでは、15 個のマイルストーンのグラフを作成することができます。15 個を超えるマイルストーンのグラフを作成するには、必要な数に合わせてテーブルを拡張するだけです。グラフ データ ワークシートにマイルストーンを追加するだけであることを忘れないでください。このテーブルにどのようなコンテンツも追加しないでください。\nメモは、セル J15 にあります。\n次の指示はセル A32 にあります。",{"$f":"IFERROR(IF(LEN(OFFSET(タスク!$C8,スクロール増分[スクロールの増分],0,1,1))=0,\"\",IF(OR(OFFSET(タスク!$D8,スクロール増分[スクロールの増分],0,1,1)<=$B$12,OFFSET(タスク!$C8,スクロール増分[スクロールの増分],0,1,1)>=($B$11-$D$11)),INDEX(タスク[],OFFSET(タスク!$B8,スクロール増分[スクロールの増分],0,1,1),4),\"\")),\"\")","v":"アクティビティ 3"},{"$f":"IFERROR(IF(LEN(動的タスク_データ[[#This Row],[タスク]])=0,$B$11,INDEX(タスク[],OFFSET(タスク!$B8,スクロール増分[スクロールの増分],0,1,1),2)),\"\")","v":"2024-04-11"},{"$f":"IFERROR(IF(LEN(動的タスク_データ[[#This Row],[タスク]])=0,0,IF(AND(タスク!$C8<=$B$12,タスク!$D8>=$B$12),ABS(OFFSET(タスク!$C8,スクロール増分[スクロールの増分],0,1,1)-$B$12)+1,OFFSET(タスク!$F8,スクロール増分[スクロールの増分],0,1,1))),\"\")","v":6},{"$f":"IFERROR(IF(LEN(動的タスク_データ[[#This Row],[タスク]])=0,\"\",6),\"\")","v":6},null,"マイルストーン","日付","ベースライン","<--このテーブルは、ガント チャートのマイルストーン マーカーを作成し、表示されている日付範囲内のマイルストーンのみを最大 15 個プロットします。"]
[null,{"$f":"IFERROR(IF(LEN(OFFSET(タスク!$C9,スクロール増分[スクロールの増分],0,1,1))=0,\"\",IF(OR(OFFSET(タスク!$D9,スクロール増分[スクロールの増分],0,1,1)<=$B$12,OFFSET(タスク!$C9,スクロール増分[スクロールの増分],0,1,1)>=($B$11-$D$11)),INDEX(タスク[],OFFSET(タスク!$B9,スクロール増分[スクロールの増分],0,1,1),4),\"\")),\"\")","v":"アクティビティ 4"},{"$f":"IFERROR(IF(LEN(動的タスク_データ[[#This Row],[タスク]])=0,$B$11,INDEX(タスク[],OFFSET(タスク!$B9,スクロール増分[スクロールの増分],0,1,1),2)),\"\")","v":"2024-04-12"},{"$f":"IFERROR(IF(LEN(動的タスク_データ[[#This Row],[タスク]])=0,0,IF(AND(タスク!$C9<=$B$12,タスク!$D9>=$B$12),ABS(OFFSET(タスク!$C9,スクロール増分[スクロールの増分],0,1,1)-$B$12)+1,OFFSET(タスク!$F9,スクロール増分[スクロールの増分],0,1,1))),\"\")","v":8},{"$f":"IFERROR(IF(LEN(動的タスク_データ[[#This Row],[タスク]])=0,\"\",5),\"\")","v":5},null,{"$f":"IFERROR(IF(LEN(マイルストーン!D6)=0,\"\",IF(AND(マイルストーン!D6<=$B$12,マイルストーン!D6>=$B$11-$D$11),マイルストーン!E6,\"\")),\"\")","v":"マイルストーン 1"},{"$f":"IFERROR(IF(LEN(DynamicMilestoneData[[#This Row],[マイルストーン]])=0,$B$12,マイルストーン!$D6),2)","v":"2024-04-20"},{"$f":"IFERROR(IF(LEN(DynamicMilestoneData[[#This Row],[マイルストーン]])=0,\"\",マイルストーン!$C6),\"\")","v":1}]
[null,{"$f":"IFERROR(IF(LEN(OFFSET(タスク!$C10,スクロール増分[スクロールの増分],0,1,1))=0,\"\",IF(OR(OFFSET(タスク!$D10,スクロール増分[スクロールの増分],0,1,1)<=$B$12,OFFSET(タスク!$C10,スクロール増分[スクロールの増分],0,1,1)>=($B$11-$D$11)),INDEX(タスク[],OFFSET(タスク!$B10,スクロール増分[スクロールの増分],0,1,1),4),\"\")),\"\")","v":"アクティビティ 5"},{"$f":"IFERROR(IF(LEN(動的タスク_データ[[#This Row],[タスク]])=0,$B$11,INDEX(タスク[],OFFSET(タスク!$B10,スクロール増分[スクロールの増分],0,1,1),2)),\"\")","v":"2024-04-19"},{"$f":"IFERROR(IF(LEN(動的タスク_データ[[#This Row],[タスク]])=0,0,IF(AND(タスク!$C10<=$B$12,タスク!$D10>=$B$12),ABS(OFFSET(タスク!$C10,スクロール増分[スクロールの増分],0,1,1)-$B$12)+1,OFFSET(タスク!$F10,スクロール増分[スクロールの増分],0,1,1))),\"\")","v":7},{"$f":"IFERROR(IF(LEN(動的タスク_データ[[#This Row],[タスク]])=0,\"\",4),\"\")","v":4},null,{"$f":"IFERROR(IF(LEN(マイルストーン!D7)=0,\"\",IF(AND(マイルストーン!D7<=$B$12,マイルストーン!D7>=$B$11-$D$11),マイルストーン!E7,\"\")),\"\")","v":""},{"$f":"IFERROR(IF(LEN(DynamicMilestoneData[[#This Row],[マイルストーン]])=0,$B$12,マイルストーン!$D7),2)","v":"2024-04-25"},{"$f":"IFERROR(IF(LEN(DynamicMilestoneData[[#This Row],[マイルストーン]])=0,\"\",マイルストーン!$C7),\"\")","v":""}]
[null,{"$f":"IFERROR(IF(LEN(OFFSET(タスク!$C11,スクロール増分[スクロールの増分],0,1,1))=0,\"\",IF(OR(OFFSET(タスク!$D11,スクロール増分[スクロールの増分],0,1,1)<=$B$12,OFFSET(タスク!$C11,スクロール増分[スクロールの増分],0,1,1)>=($B$11-$D$11)),INDEX(タスク[],OFFSET(タスク!$B11,スクロール増分[スクロールの増分],0,1,1),4),\"\")),\"\")","v":"アクティビティ 6"},{"$f":"IFERROR(IF(LEN(動的タスク_データ[[#This Row],[タスク]])=0,$B$11,INDEX(タスク[],OFFSET(タスク!$B11,スクロール増分[スクロールの増分],0,1,1),2)),\"\")","v":"2024-04-23"},{"$f":"IFERROR(IF(LEN(動的タスク_データ[[#This Row],[タスク]])=0,0,IF(AND(タスク!$C11<=$B$12,タスク!$D11>=$B$12),ABS(OFFSET(タスク!$C11,スクロール増分[スクロールの増分],0,1,1)-$B$12)+1,OFFSET(タスク!$F11,スクロール増分[スクロールの増分],0,1,1))),\"\")","v":3},{"$f":"IFERROR(IF(LEN(動的タスク_データ[[#This Row],[タスク]])=0,\"\",3),\"\")","v":3},null,{"$f":"IFERROR(IF(LEN(マイルストーン!D8)=0,\"\",IF(AND(マイルストーン!D8<=$B$12,マイルストーン!D8>=$B$11-$D$11),マイルストーン!E8,\"\")),\"\")","v":""},{"$f":"IFERROR(IF(LEN(DynamicMilestoneData[[#This Row],[マイルストーン]])=0,$B$12,マイルストーン!$D8),2)","v":"2024-04-25"},{"$f":"IFERROR(IF(LEN(DynamicMilestoneData[[#This Row],[マイルストーン]])=0,\"\",マイルストーン!$C8),\"\")","v":""}]
[null,{"$f":"IFERROR(IF(LEN(OFFSET(タスク!$C12,スクロール増分[スクロールの増分],0,1,1))=0,\"\",IF(OR(OFFSET(タスク!$D12,スクロール増分[スクロールの増分],0,1,1)<=$B$12,OFFSET(タスク!$C12,スクロール増分[スクロールの増分],0,1,1)>=($B$11-$D$11)),INDEX(タスク[],OFFSET(タスク!$B12,スクロール増分[スクロールの増分],0,1,1),4),\"\")),\"\")","v":"アクティビティ 7"},{"$f":"IFERROR(IF(LEN(動的タスク_データ[[#This Row],[タスク]])=0,$B$11,INDEX(タスク[],OFFSET(タスク!$B12,スクロール増分[スクロールの増分],0,1,1),2)),\"\")","v":"2024-04-26"},{"$f":"IFERROR(IF(LEN(動的タスク_データ[[#This Row],[タスク]])=0,0,IF(AND(タスク!$C12<=$B$12,タスク!$D12>=$B$12),ABS(OFFSET(タスク!$C12,スクロール増分[スクロールの増分],0,1,1)-$B$12)+1,OFFSET(タスク!$F12,スクロール増分[スクロールの増分],0,1,1))),\"\")","v":16},{"$f":"IFERROR(IF(LEN(動的タスク_データ[[#This Row],[タスク]])=0,\"\",2),\"\")","v":2},null,{"$f":"IFERROR(IF(LEN(マイルストーン!D9)=0,\"\",IF(AND(マイルストーン!D9<=$B$12,マイルストーン!D9>=$B$11-$D$11),マイルストーン!E9,\"\")),\"\")","v":""},{"$f":"IFERROR(IF(LEN(DynamicMilestoneData[[#This Row],[マイルストーン]])=0,$B$12,マイルストーン!$D9),2)","v":"2024-04-25"},{"$f":"IFERROR(IF(LEN(DynamicMilestoneData[[#This Row],[マイルストーン]])=0,\"\",マイルストーン!$C9),\"\")","v":""}]
[{"$nulls":6},{"$f":"IFERROR(IF(LEN(マイルストーン!D10)=0,\"\",IF(AND(マイルストーン!D10<=$B$12,マイルストーン!D10>=$B$11-$D$11),マイルストーン!E10,\"\")),\"\")","v":""},{"$f":"IFERROR(IF(LEN(DynamicMilestoneData[[#This Row],[マイルストーン]])=0,$B$12,マイルストーン!$D10),2)","v":"2024-04-25"},{"$f":"IFERROR(IF(LEN(DynamicMilestoneData[[#This Row],[マイルストーン]])=0,\"\",マイルストーン!$C10),\"\")","v":""}]
[{"$nulls":6},{"$f":"IFERROR(IF(LEN(マイルストーン!D11)=0,\"\",IF(AND(マイルストーン!D11<=$B$12,マイルストーン!D11>=$B$11-$D$11),マイルストーン!E11,\"\")),\"\")","v":""},{"$f":"IFERROR(IF(LEN(DynamicMilestoneData[[#This Row],[マイルストーン]])=0,$B$12,マイルストーン!$D11),2)","v":"2024-04-25"},{"$f":"IFERROR(IF(LEN(DynamicMilestoneData[[#This Row],[マイルストーン]])=0,\"\",マイルストーン!$C11),\"\")","v":""}]
[{"$nulls":6},{"$f":"IFERROR(IF(LEN(マイルストーン!D12)=0,\"\",IF(AND(マイルストーン!D12<=$B$12,マイルストーン!D12>=$B$11-$D$11),マイルストーン!E12,\"\")),\"\")","v":""},{"$f":"IFERROR(IF(LEN(DynamicMilestoneData[[#This Row],[マイルストーン]])=0,$B$12,マイルストーン!$D12),2)","v":"2024-04-25"},{"$f":"IFERROR(IF(LEN(DynamicMilestoneData[[#This Row],[マイルストーン]])=0,\"\",マイルストーン!$C12),\"\")","v":""}]
[{"$nulls":6},{"$f":"IFERROR(IF(LEN(マイルストーン!D13)=0,\"\",IF(AND(マイルストーン!D13<=$B$12,マイルストーン!D13>=$B$11-$D$11),マイルストーン!E13,\"\")),\"\")","v":""},{"$f":"IFERROR(IF(LEN(DynamicMilestoneData[[#This Row],[マイルストーン]])=0,$B$12,マイルストーン!$D13),2)","v":"2024-04-25"},{"$f":"IFERROR(IF(LEN(DynamicMilestoneData[[#This Row],[マイルストーン]])=0,\"\",マイルストーン!$C13),\"\")","v":""}]
[{"$nulls":6},{"$f":"IFERROR(IF(LEN(マイルストーン!D14)=0,\"\",IF(AND(マイルストーン!D14<=$B$12,マイルストーン!D14>=$B$11-$D$11),マイルストーン!E14,\"\")),\"\")","v":""},{"$f":"IFERROR(IF(LEN(DynamicMilestoneData[[#This Row],[マイルストーン]])=0,$B$12,マイルストーン!$D14),2)","v":"2024-04-25"},{"$f":"IFERROR(IF(LEN(DynamicMilestoneData[[#This Row],[マイルストーン]])=0,\"\",マイルストーン!$C14),\"\")","v":""}]
[{"$nulls":6},{"$f":"IFERROR(IF(LEN(マイルストーン!D15)=0,\"\",IF(AND(マイルストーン!D15<=$B$12,マイルストーン!D15>=$B$11-$D$11),マイルストーン!E15,\"\")),\"\")","v":""},{"$f":"IFERROR(IF(LEN(DynamicMilestoneData[[#This Row],[マイルストーン]])=0,$B$12,マイルストーン!$D15),2)","v":"2024-04-25"},{"$f":"IFERROR(IF(LEN(DynamicMilestoneData[[#This Row],[マイルストーン]])=0,\"\",マイルストーン!$C15),\"\")","v":""}]
[{"$nulls":6},{"$f":"IFERROR(IF(LEN(マイルストーン!D16)=0,\"\",IF(AND(マイルストーン!D16<=$B$12,マイルストーン!D16>=$B$11-$D$11),マイルストーン!E16,\"\")),\"\")","v":""},{"$f":"IFERROR(IF(LEN(DynamicMilestoneData[[#This Row],[マイルストーン]])=0,$B$12,マイルストーン!$D16),2)","v":"2024-04-25"},{"$f":"IFERROR(IF(LEN(DynamicMilestoneData[[#This Row],[マイルストーン]])=0,\"\",マイルストーン!$C16),\"\")","v":""}]
[{"$nulls":6},{"$f":"IFERROR(IF(LEN(マイルストーン!D17)=0,\"\",IF(AND(マイルストーン!D17<=$B$12,マイルストーン!D17>=$B$11-$D$11),マイルストーン!E17,\"\")),\"\")","v":""},{"$f":"IFERROR(IF(LEN(DynamicMilestoneData[[#This Row],[マイルストーン]])=0,$B$12,マイルストーン!$D17),2)","v":"2024-04-25"},{"$f":"IFERROR(IF(LEN(DynamicMilestoneData[[#This Row],[マイルストーン]])=0,\"\",マイルストーン!$C17),\"\")","v":""}]
[{"$nulls":6},{"$f":"IFERROR(IF(LEN(マイルストーン!D18)=0,\"\",IF(AND(マイルストーン!D18<=$B$12,マイルストーン!D18>=$B$11-$D$11),マイルストーン!E18,\"\")),\"\")","v":""},{"$f":"IFERROR(IF(LEN(DynamicMilestoneData[[#This Row],[マイルストーン]])=0,$B$12,マイルストーン!$D18),2)","v":"2024-04-25"},{"$f":"IFERROR(IF(LEN(DynamicMilestoneData[[#This Row],[マイルストーン]])=0,\"\",マイルストーン!$C18),\"\")","v":""}]
[{"$nulls":6},{"$f":"IFERROR(IF(LEN(マイルストーン!D19)=0,\"\",IF(AND(マイルストーン!D19<=$B$12,マイルストーン!D19>=$B$11-$D$11),マイルストーン!E19,\"\")),\"\")","v":""},{"$f":"IFERROR(IF(LEN(DynamicMilestoneData[[#This Row],[マイルストーン]])=0,$B$12,マイルストーン!$D19),2)","v":"2024-04-25"},{"$f":"IFERROR(IF(LEN(DynamicMilestoneData[[#This Row],[マイルストーン]])=0,\"\",マイルストーン!$C19),\"\")","v":""}]
["メモは、セル J32 にあります。\nこれは、このワークシートにおける最後の説明です。",{"$nulls":5},{"$f":"IFERROR(IF(LEN(マイルストーン!D20)=0,\"\",IF(AND(マイルストーン!D20<=$B$12,マイルストーン!D20>=$B$11-$D$11),マイルストーン!E20,\"\")),\"\")","v":""},{"$f":"IFERROR(IF(LEN(DynamicMilestoneData[[#This Row],[マイルストーン]])=0,$B$12,マイルストーン!$D20),2)","v":"2024-04-25"},{"$f":"IFERROR(IF(LEN(DynamicMilestoneData[[#This Row],[マイルストーン]])=0,\"\",マイルストーン!$C20),\"\")","v":""},"<--15 個を超えるマイルストーンのグラフを作成するには、このテーブルを拡張し、グラフ データ ワークシートのマイルストーン テーブルに新しいエントリを入力するだけです。\n"]